Cogmind - Beta 13 @@@ ROGUE MODE // 2024.04.05 @ 13:28:33 Player: Kara Result: Destroyed by as-12560 with Assembled Heavy Rifle Performance ------------- Evolutions (0) 0 Regions Visited (2) 400 Robots Destroyed (25) 125 Value Destroyed (416) 416 Prototype IDs (0) 0 Alien Tech Used (0) 0 Bonus (60) 60 TOTAL SCORE: 1001 Bonus ------- Follower Combat Kills 60 Cogmind --------- Core Integrity 0/250 Matter 280/300 Energy 87/100 System Corruption 1% Temperature Cool (0) Movement Walking (120) Location -10/Mines Parts ------- > --- POWER (1) -------- (None) > --- PROPULSION (2) --- Aluminum Leg Aluminum Leg > --- UTILITY (2) ------ Signal Interpreter Utility Shielding > --- WEAPON (2) ------- (None) > --- INVENTORY (5) ---- Hacking Suite Recalibrator Mining Laser Mining Claw Peak State ------------ > --- POWER ------------ Light Ion Engine > --- PROPULSION ------- Improved Hover Unit Improved Hover Unit > --- UTILITY ---------- Improved Targeting Computer Improved Targeting Computer > --- WEAPON ----------- Mining Claw Mining Claw > --- INVENTORY -------- Wheel Wheel Hacking Suite Recalibrator Medium Laser [Rating: 12] Favorites ----------- Power Light Ion Engine Engine Light Ion Engine Propulsion Aluminum Leg Leg Aluminum Leg Wheel Wheel Hover Unit Improved Hover Unit Utility Signal Interpreter Processor Signal Interpreter Protection Utility Shielding Weapon Small Laser Energy Gun Small Laser Ballistic Gun Light Assault Rifle Slashing Weapon Mining Claw Build | -11 -10 -10 ------- Run | Yrd Mat Min Slots Evolved . | . . . Power . | . . . Propulsion . | . . . Utility . | . . . Weapon . | . . . Parts Attached 33 | 6 25 2 Power 5 | 1 4 . Engine 5 | 1 4 . Core . | . . . Reactor . | . . . Propulsion 12 | 3 7 2 Treads . | . . . Leg 5 | . 3 2 Wheel 3 | 3 . . Hover 4 | . 4 . Flight . | . . . Utility 4 | . 4 . Device . | . . . Storage . | . . . Processor 3 | . 3 . Hackware . | . . . Protection 1 | . 1 . Artifact . | . . . Weapon 12 | 2 10 . Energy Gun 4 | 2 2 . Energy Cannon . | . . . Ballistic Gun 4 | . 4 . Ballistic Cannon . | . . . Launcher . | . . . Special Weapon . | . . . Impact Weapon . | . . . Slashing Weapon 4 | . 4 . Piercing Weapon . | . . . Special Melee Weapon . | . . . Unidentified Prototypes . | . . . Parts Lost 9 | . 4 5 Power 3 | . 2 1 Propulsion 3 | . 1 2 Utility . | . . . Weapon 3 | . 1 2 Highest Loss Streak 5 | . 2 5 To Critical Strikes . | . . . Average Slot Usage (%) 95 | . 95 90 Engine 13 | . 13 12 Leg 18 | . 17 25 Wheel 1 | . 1 . Hover 6 | . 7 . Processor 17 | . 18 14 Protection 8 | . 7 14 Energy Gun 8 | . 8 12 Ballistic Gun 13 | . 13 10 Slashing Weapon 4 | . 5 . Naked Turns . | . . . Heaviest Build 9 | 7 9 8 Greatest Support 20 | 20 20 20 Greatest Overweight (x) 1 | . 1 . Average Overweight (x) . | . . . Largest Inventory Capacity 5 | 5 5 5 Average Capacity 5 | 5 5 5 Most Carried 5 | 4 5 5 Average Carried 3 | 2 3 4 Final Capacity 5 | 5 5 5 Final Carried 5 | 3 5 4 Class Distribution -------------------- 62% | Scavenger-Mutant 37% | Mutant Dominant Class ---------------- Scavenger-Mutant | -10/Materials Scavenger-Mutant | -10/Mines Resources | -11 -10 -10 ----------- Run | Yrd Mat Min Matter Collected 650 | 250 397 3 Remotely . | . . . Salvage Created 609 | 43 551 15 Parts 48 | 2 46 . Haulers Intercepted 1 | . 1 . Recyclers Shooed . | . . . Parts Field Recycled . | . . . Retrieved Matter . | . . . Parts Self-Destructed . | . . . Prevented . | . . . Kills | -11 -10 -10 ------- Run | Yrd Mat Min Combat Hostiles Destroyed 17 | 1 15 1 Guns 17 | 1 15 1 Classes Destroyed 9 | 2 6 1 Worker 2 | 1 1 . Tunneler 1 | . 1 . Hauler 1 | . 1 . Mechanic 1 | . 1 . Operator 1 | . 1 . Watcher 3 | . 3 . Swarmer 9 | . 9 . Grunt 7 | 1 6 . Assembled 1 | . . 1 Best Kill Streak 4 | 1 4 1 Combat Bots Only 4 | 1 4 1 Max Kills in Single Turn 2 | 1 2 1 Gunslinging 1 | . 1 . Exploded . | . . . Melee . | . . . Uniques/NPCs Destroyed . | . . . Combat | -11 -10 -10 -------- Run | Yrd Mat Min Hostile Shots Fired 129 | 7 84 38 Missed 35 | 1 21 13 Damage Taken 1129 | 63 631 435 Core 255 | 11 109 135 Absorbed by Shields . | . . . Core Remaining (%) 95 | 95 . . Volleys Fired 62 | 10 43 9 Largest 2 | 2 2 2 Hottest 100 | 100 100 60 Shots Fired 113 | 20 80 13 Gun 113 | 20 80 13 Cannon . | . . . Launcher . | . . . Special . | . . . Kinetic 60 | . 56 4 Thermal 53 | 20 24 9 Explosive . | . . . Electromagnetic . | . . . Robot Hit Streak 14 | 6 11 14 Robot Miss Streak 5 | 2 3 5 Penetration Max . | . . . Secondary Targets 2 | . 2 . Max Gunslinging Chain 1 | . 1 . Shots Hit Robots 74 | 11 56 7 Core Hits 35 | 3 29 3 Critical Kills . | . . . Critical Parts Destroyed . | . . . Critical Strikes 1 | 1 . . Burn 1 | 1 . . Melee Attacks 18 | . 18 . Impact . | . . . Slashing 18 | . 18 . Piercing . | . . . Sneak Attacks 7 | . 7 . Combat Hostiles . | . . . Follow-up Attacks 3 | . 3 . Damage Inflicted 1186 | 141 975 70 Guns 769 | 141 558 70 Cannons . | . . . Explosions . | . . . Melee 413 | . 413 . Ramming 4 | . 4 . Kinetic 406 | . 389 17 Thermal 363 | 141 169 53 Explosive . | . . . Electromagnetic . | . . . Impact . | . . . Slashing 413 | . 413 . Piercing . | . . . Highest Corruption 1 | . 1 1 Average Corruption 1 | . 1 1 Corruption Purged . | . . . Corruption Blocked . | . . . Effects 1 | . 1 . Energy Discharges 1 | . 1 . Overload Shots . | . . . Overflow Damage 46 | . 46 . Projectiles . | . . . Explosions . | . . . Melee 46 | . 46 . Knockbacks . | . . . Impact . | . . . Kinetic . | . . . Secondary . | . . . Self-Inflicted Damage 2 | . 2 . Shots . | . . . Rammed 1 | . 1 . Targets Rammed 1 | . 1 . Kicked . | . . . Crushed . | . . . Highest Temperature 270 | 270 78 20 Average Temperature 65 | 125 18 13 Received Heat Transfer 214 | 36 138 40 Siege Activations . | . . . Robots Corrupted . | . . . Combat Hostiles . | . . . Parts Fried . | . . . Impact Corruptions . | . . . Robots Melted . | . . . Combat Hostiles . | . . . Parts Melted 2 | 2 . . Heat Transferred 1005 | 481 399 125 Parts Sabotaged . | . . . Parts Stolen . | . . . Parts Stripped . | . . . Power Chain Reactions . | . . . Alert | -11 -10 -10 ------- Run | Yrd Mat Min Peak Influence 331 | 25 331 131 Initial 73 | . 16 73 Average 151 | 3 181 84 Maximum Alert Level 1 | . 1 . Low Security (%) 73 | 100 65 100 Level 1 26 | . 34 . Level 2 . | . . . Level 3 . | . . . Level 4 . | . . . Level 5 . | . . . High Security . | . . . Max Security . | . . . Squads Dispatched 4 | . 4 . Investigation 1 | . 1 . Extermination . | . . . Reinforcement 3 | . 3 . Assault . | . . . Garrison . | . . . Intercept . | . . . Searches Triggered . | . . . Construction Impeded . | . . . Haulers Reinforced . | . . . Active Scanning Responses . | . . . Cargo Convoy Interrupts . | . . . Stealth | -11 -10 -10 --------- Run | Yrd Mat Min Distress Signals 1 | . . 1 Communications Jammed . | . . . Distress Signals . | . . . Times Spotted 33 | 1 25 7 Peak Tracking Total 7 | 1 7 4 Tactical Retreats 1 | . 1 . Traps | -11 -10 -10 ------- Run | Yrd Mat Min Traps Triggered 5 | . 5 . Indirectly . | . . . Trap Hack Attempts . | . . . Triggered . | . . . Disarmed . | . . . Reprogrammed . | . . . Reused . | . . . Traps Extracted . | . . . Installed . | . . . Triggered . | . . . Machines | -11 -10 -10 ---------- Run | Yrd Mat Min Machines Disabled . | . . . Max in Single Turn . | . . . Machines Repaired . | . . . Machines Dismantled . | . . . Machines Sabotaged . | . . . Overloaded Fab Kills . | . . . Hacking | -11 -10 -10 --------- Run | Yrd Mat Min Machines Accessed 2 | . 2 . Terminals 2 | . 2 . Fabricators . | . . . Repair Stations . | . . . Recycling Units . | . . . Scanalyzers . | . . . Garrison Access . | . . . Total Hacks 4 | . 4 . Successful 3 | . 3 . Failed 1 | . 1 . Catastrophic . | . . . Database Lockouts . | . . . Manual . | . . . Terminals 4 | . 4 . Fabricators . | . . . Repair Stations . | . . . Recycling Units . | . . . Scanalyzers . | . . . Garrison Access . | . . . Terminal Hacks 3 | . 3 . Locate Traps 2 | . 2 . Maintenance Status 1 | . 1 . Fabricator Hacks . | . . . Repair Station Hacks . | . . . Recycling Unit Hacks . | . . . Scanalyzer . | . . . Garrison Access Hacks . | . . . Unauthorized Hacks . | . . . Terminals . | . . . Fabricators . | . . . Repair Stations . | . . . Recycling Units . | . . . Scanalyzers . | . . . Garrison Access . | . . . Data Cores Recovered . | . . . Used . | . . . Hacking Detections 1 | . 1 . Full Trace Events 1 | . 1 . Feedback Events . | . . . Feedback Blocked . | . . . Robot Schematics Acquired . | . . . Robots Built . | . . . Authchips . | . . . Time . | . . . Total Robot Build Rating . | . . . Part Schematics Acquired . | . . . Parts Built . | . . . Authchips . | . . . Time . | . . . Total Part Build Rating . | . . . Parts Repaired . | . . . Time . | . . . Parts Recycled . | . . . Recycled Matter . | . . . Retrieved Matter . | . . . Retrieved Components . | . . . Parts Scanalyzed . | . . . Part Schematics Acquired . | . . . Parts Damaged . | . . . Bothacking | -11 -10 -10 ------------ Run | Yrd Mat Min Used RIF Installer . | . . . Robots Hacked . | . . . Non-combat . | . . . Combat . | . . . Robot Hacks Applied . | . . . Relay Couplers Released . | . . . Fabnet Peak Effective % . | . . . Robots Rewired . | . . . Allies Hacked . | . . . Hacks Repelled . | . . . Allies | -11 -10 -10 -------- Run | Yrd Mat Min Total Allies 3 | . . 3 Largest Group 3 | . . 3 Highest-Rated Group 40 | . . 40 Highest-Rated Ally 16 | . . 16 Total Orders . | . . . Ally Attacks 15 | . . 15 Total Damage 155 | . . 155 Kills 2 | . . 2 Allies Corrupted . | . . . Allies Melted . | . . . Intel | -11 -10 -10 ------- Run | Yrd Mat Min Robot Analysis Total . | . . . Derelict Logs Recovered . | . . . Drone Launches . | . . . Drone Recoveries . | . . . Exploration | -11 -10 -10 ------------- Run | Yrd Mat Min Turns Passed 1457 | 121 1111 225 Spaces Moved 1170 | 112 897 161 Core 55 | 49 4 2 Treads . | . . . Legs 659 | . 500 159 Wheels 119 | 63 56 . Hover 337 | . 337 . Flight . | . . . Fastest Speed 50 | 50 56 50 Average Speed 94 | 66 93 119 Slowest Speed 120 | 80 120 120 Overloaded Moves . | . . . Propulsion Burnouts . | . . . Robots Hopped . | . . . Cave-ins Triggered . | . . . Exploration Rate (%) 41 | 7 96 20 Regions Visited 2 Branch Regions 1 Pre-discovered Areas . | . . . Known Exits Taken 1 | . 1 . Unknown Exits Taken 1 | 1 . . Scrap Searched . | . . . Spaces Dug . | . . . Terrain Destroyed . | . . . Melee . | . . . Projectile . | . . . AOE . | . . . Terrain Rammed . | . . . Walls Destroyed . | . . . Machines Disabled . | . . . Actions | -11 -10 -10 --------- Run | Yrd Mat Min Total 1382 | 137 1063 182 Wait 43 | . 36 7 Move 1168 | 111 896 161 Hop . | . . . Pick Up 42 | 9 31 2 Fast Attach . | . . . Attach 17 | 5 10 2 Detach . | . . . Swap 16 | 1 15 . Drop 19 | 1 17 1 Fire 62 | 10 43 9 Melee 14 | . 14 . Ram 1 | . 1 . Kick . | . . . Crush . | . . . Escape Stasis . | . . . Rewire . | . . . Trap . | . . . Miscellaneous . | . . . Route ------- -11/Scrapyard -10/Materials (discovered 4 exits: *Mat x3 / *Min) -10/Mines History --------- Turn | Location | Event 2 | -11/Scrapyard | Met Revision 17 90 | -11/Scrapyard | Discovered new exit (range 8) 122 | -11/Scrapyard | Entered Materials 285 | -10/Materials | Discovered new exit (range 8) 309 | -10/Materials | Build established: Mutant 346 | -10/Materials | Discovered new exit (range 14) 400 | -10/Materials | Identified exit to Materials 479 | -10/Materials | Discovered exit to Materials (range 12) 832 | -10/Materials | Discovered exit to Materials (range 8) 1062 | -10/Materials | Build established: Scavenger-Mutant 1223 | -10/Materials | Identified exit to Mines 1233 | -10/Materials | Entered Mines 1241 | -10/Mines | Assisted by bots powering up and referring to "LRC-V3" 1331 | -10/Mines | Assembled infested the area 1416 | -10/Mines | Core integrity fell below 50% 1448 | -10/Mines | Lost 3 allies 1453 | -10/Mines | Core integrity fell below 20% 1458 | -10/Mines | Destroyed by as-12560 with Assembled Heavy Rifle Last Messages --------------- 01331_ ALERT: Infestation in the mines, dispatching Demolisher response squad. 01332_ K-01 Serf collects debris. 01335_ G-47 Trooper destroyed. 01338_ G-34 Mercenary destroyed. 01339_ Acquired 1 matter. 01362_ K-01 Serf collects debris. 01380_ as-15847 destroyed. 01382_ Acquired 2 matter. 01401_ Lgt. Assault Rifle destroyed. 01404_ *Bobby destroyed. 01417_ *Joel destroyed. 01422_ Aluminum Leg destroyed. 01427_ Sml. Laser destroyed. 01428_ K-01 Serf collects debris. 01432_ K-01 Serf destroyed. 01438_ Ion Engine destroyed. 01447_ Aluminum Leg destroyed. 01449_ Dropped Mining Laser. 01449_ Acquired Aluminum Leg. Map ----- +----------------------------------------------------+ | ?????????????????????????????????????????????????? | | ?????????????????????????????????????????????????? | | ?????????????????????????????????????????????????? | | ?????????????????????????????????????????????????? | | ?????????????????????????????????????????????????? | | ?????????????????????????????????????????????????? | | ?????????????????????????????????????????????????? | | ?????????????????????????????????????????????????? | | ?????????????????????????????????????????????????? | | ?????????????????????????????????????????????????? | | ?????????????????????????????????????????????? ??? | | ???????????????????????????????????###??????? ? | | ?????????????????????????????????## #????? | | ????????????????????????????????? ????? | | ????????????????????????????????? ????# | | ????????????????????????????????? #???# | | ???????????##############????????? #?## ? | | ???????????# #????????? ??# ?? | | ???????????# #????????? *?? #?## | | ???????????# #????????? !%?? #??# | | ???????????# """ """ #?????????# #??# #??# | | ???????????# """ """|!%#?????????# #??# #??# | | ???????????# """ """ %*#????????## #### ! #???# | | ???????????# a !*#????##### %=!%[ %#??#### | | ???????????# """ """ a###### ##### !#?## | | ???????????# """ """= @ % ### ##### ### | | ???????????# """ """a! ########?# | | ???????????# * #????????# #### #### | | ???????????##############????????# #??## ##??? | | ?????????????????????????#####???# #???#######???? | | ?????????????????????????# ##??# ##########????? | | ?????????????????????????# #### ##???? | | ?????????????????????????# #???? | | ?????????????????????????## ##### ##???? | | ??????????????????????????############???####????? | | ?????????????????????????????????????????????????? | | ?????????????????????????????????????????????????? | | | | | | | | | | | | | | | | | | | | | | | | | | | +----------------------------------------------------+ Best States ------------- Heat Dissipation 25 Energy Generation 10 Energy Capacity 250 Matter Stores 300 Matter Capacity 300 Sight Range 16 Terrain Scan Density 10 Utility Shielding 33 Evasion (%) 55 Targeting Accuracy 12 Item Schematics ----------------- None Robot Schematics ------------------ None Fabricated ------------ Nothing Alien Tech Used ----------------- None Achievements -------------- None Challenges ------------ None Game ------ Seed MyomerLongswordConstruct Manual? 0 Play Time 00:21:55 Cumulative 2.8 hours Start 2024.04.05 @ 12:54:57 End 2024.04.05 @ 13:28:33 Sessions 1 Manual Loads 0 Difficulty Rogue Special Mode None Game No. 3 Rogue 3 Adventurer 0 Explorer 0 Win Type - Total 0 Types 0/0/0/0/0/0/0/0/0 Lore% 2 Gallery% 5 Achievement% 4 Wizard Run 0 Options --------- Layout 1 ASCII 0 Keyboard 0 Movement Numpad Keybinds 0 Fullscreen 1 Font 24/Smallcaps Map View 50x35 Zoom Use 0% Tactical HUD 1 Map Filters NONE Filters NONE Steam 1 RUN: aab37458-b71f-42ea-b9bd-e0e2937fa0d6